Cogmind - Beta 12 @@@ ROGUE MODE // 2023.04.18 @ 13:47:12 Player: ToadDude Result: Destroyed by D-53 Grenadier with Mini Grenade Launcher Performance ------------- Evolutions (0) 0 Regions Visited (4) 800 Robots Destroyed (27) 135 Value Destroyed (488) 488 Prototype IDs (3) 60 Alien Tech Used (0) 0 Bonus (300) 300 TOTAL SCORE: 1783 Bonus ------- Aligned with FarCom 300 Cogmind --------- Core Integrity 0/250 Matter 257/300 Energy 265/265 System Corruption 2% Temperature Warm (175) Movement Rolling (110) Ox2 Location -9/Mines Parts ------- > --- POWER (1) -------- Improved Ion Engine > --- PROPULSION (2) --- Wheel > --- UTILITY (2) ------ Medium Storage Unit Targeting Computer > --- WEAPON (2) ------- Medium Laser Rocket Launcher > --- INVENTORY (10) --- Wheel Medium Storage Unit Utility Shielding Light Armor Plating Light Armor Plating Light Armor Plating Shield Generator Trap Reconfigurator Beam Cannon Assault Rifle Peak State ------------ > --- POWER ------------ Improved Ion Engine > --- PROPULSION ------- Wheel Wheel > --- UTILITY ---------- Medium Storage Unit Targeting Computer > --- WEAPON ----------- Beam Cannon Field Lobotomy Kit > --- INVENTORY -------- Wheel Medium Storage Unit Utility Shielding Light Armor Plating Light Armor Plating Light Armor Plating Shield Generator Medium Laser Assault Rifle Rocket Launcher [Rating: 18] Favorites ----------- Power Improved Ion Engine Engine Improved Ion Engine Propulsion Wheel Wheel Wheel Utility Targeting Computer Device Improved Terrain Scanner Storage Medium Storage Unit Processor Targeting Computer Weapon Assault Rifle Energy Gun Medium Laser Energy Cannon Beam Cannon Ballistic Gun Assault Rifle Launcher Rocket Launcher Special Weapon Field Lobotomy Kit Build | -11 -10 -10 -10 -9 ------- Run | Jun Mat Min Exi Min Slots Evolved . | . . . . . Power . | . . . . . Propulsion . | . . . . . Utility . | . . . . . Weapon . | . . . . . Parts Attached 23 | 7 5 7 3 1 Power 3 | 1 1 1 . . Engine 3 | 1 1 1 . . Core . | . . . . . Reactor . | . . . . . Propulsion 6 | 2 2 2 . . Treads . | . . . . . Leg . | . . . . . Wheel 6 | 2 2 2 . . Hover . | . . . . . Flight . | . . . . . Utility 5 | 2 2 . 1 . Device 1 | 1 . . . . Storage 3 | 1 1 . 1 . Processor 1 | . 1 . . . Hackware . | . . . . . Protection . | . . . . . Artifact . | . . . . . Weapon 9 | 2 . 4 2 1 Energy Gun 2 | . . 1 1 . Energy Cannon 1 | . . 1 . . Ballistic Gun 4 | 2 . 2 . . Ballistic Cannon . | . . . . . Launcher 1 | . . . . 1 Special Weapon 1 | . . . 1 . Impact Weapon . | . . . . . Slashing Weapon . | . . . . . Piercing Weapon . | . . . . . Special Melee Weapon . | . . . . . Unidentified Prototypes 1 | . . . 1 . Parts Lost 8 | . 2 5 . 1 Power 1 | . . 1 . . Propulsion 5 | . 2 2 . 1 Utility . | . . . . . Weapon 2 | . . 2 . . Highest Loss Streak 5 | . 1 5 . 1 To Critical Strikes . | . . . . . Average Slot Usage (%) 99 | . 99 97 100 99 Engine 13 | . 14 13 14 14 Wheel 27 | . 27 26 28 27 Storage 14 | . 14 14 14 14 Processor 13 | . 11 14 14 14 Energy Gun 6 | . . 2 14 14 Energy Cannon 6 | . . 3 14 13 Ballistic Gun 14 | . 28 21 . . Naked Turns . | . . . . . Heaviest Build 22 | 15 21 22 22 22 Greatest Support 20 | 20 20 20 20 20 Greatest Overweight (x) 4 | . 1 4 1 1 Average Overweight (x) . | . . . . 1 Largest Inventory Capacity 10 | 8 10 10 10 10 Average Capacity 9 | 7 9 10 10 10 Most Carried 10 | 8 10 10 10 10 Average Carried 9 | 5 8 9 9 10 Final Capacity 10 | 8 10 10 10 10 Final Carried 10 | 8 10 10 10 10 Class Distribution -------------------- 100% | Mutant Dominant Class ---------------- Mutant | -10/Materials Mutant | -10/Mines Mutant | -10/Exiles Mutant | -9/Mines Resources | -11 -10 -10 -10 -9 ----------- Run | Jun Mat Min Exi Min Matter Collected 751 | 266 356 99 . 30 Remotely . | . . . . . Salvage Created 800 | 47 558 176 . 19 Parts 68 | 8 46 14 . . Haulers Intercepted 2 | . 2 . . . Recyclers Shooed . | . . . . . Parts Field Recycled . | . . . . . Retrieved Matter . | . . . . . Parts Self-Destructed . | . . . . . Prevented . | . . . . . Kills | -11 -10 -10 -10 -9 ------- Run | Jun Mat Min Exi Min Combat Hostiles Destroyed 25 | . 12 7 . 6 Guns 19 | . 12 6 . 1 Cannons 1 | . . 1 . . AOE 5 | . . . . 5 Classes Destroyed 8 | 1 5 1 . 1 Builder 1 | . 1 . . . Tunneler 2 | 2 . . . . Hauler 2 | . 2 . . . Watcher 3 | . 3 . . . Swarmer 11 | . 6 5 . . Grunt 6 | . 6 . . . Sentry 2 | . . 2 . . Assembled 6 | . . . . 6 Best Kill Streak 6 | 2 5 3 . 6 Combat Bots Only 6 | . 5 3 . 6 Max Kills in Single Turn 3 | 1 1 2 . 3 Gunslinging 1 | . . 1 . . Exploded 3 | . . . . 3 Melee . | . . . . . Uniques/NPCs Destroyed . | . . . . . Combat | -11 -10 -10 -10 -9 -------- Run | Jun Mat Min Exi Min Damage Taken 1154 | . 353 458 . 343 Core 256 | . 48 119 . 89 Absorbed by Shields . | . . . . . Core Remaining (%) 100 | 100 . . . . Volleys Fired 78 | 5 47 21 . 5 Largest 2 | 2 2 2 . 2 Hottest 110 | 40 40 80 . 110 Shots Fired 142 | 10 94 28 . 10 Gun 133 | 10 94 24 . 5 Cannon 6 | . . 4 . 2 Launcher 3 | . . . . 3 Special . | . . . . . Kinetic 128 | 10 94 24 . . Thermal 11 | . . 4 . 7 Explosive 3 | . . . . 3 Electromagnetic . | . . . . . Robot Hit Streak 13 | 3 12 13 . 11 Robot Miss Streak 3 | 1 3 2 . . Penetration Max . | . . . . . Secondary Targets 1 | . . 1 . . Max Gunslinging Chain 1 | . . 1 . . Shots Hit Robots 92 | 6 58 21 . 7 Core Hits 46 | 3 25 9 . 9 Critical Kills . | . . . . . Critical Parts Destroyed . | . . . . . Critical Strikes . | . . . . . Melee Attacks . | . . . . . Impact . | . . . . . Slashing . | . . . . . Piercing . | . . . . . Sneak Attacks . | . . . . . Combat Hostiles . | . . . . . Follow-up Attacks . | . . . . . Damage Inflicted 1468 | 74 736 267 . 391 Guns 1057 | 74 736 197 . 50 Cannons 88 | . . 70 . 18 Explosions 323 | . . . . 323 Melee . | . . . . . Ramming . | . . . . . Kinetic 1007 | 74 736 197 . . Thermal 138 | . . 70 . 68 Explosive 323 | . . . . 323 Electromagnetic . | . . . . . Impact . | . . . . . Slashing . | . . . . . Piercing . | . . . . . Highest Corruption 2 | . . . . 2 Average Corruption 2 | . . . . 2 Corruption Purged . | . . . . . Corruption Blocked . | . . . . . Overload Shots . | . . . . . Overflow Damage 11 | . . . . 11 Projectiles . | . . . . . Explosions 11 | . . . . 11 Melee . | . . . . . Knockbacks . | . . . . . Impact . | . . . . . Kinetic . | . . . . . Secondary . | . . . . . Self-Inflicted Damage . | . . . . . Shots . | . . . . . Rammed . | . . . . . Targets Rammed . | . . . . . Kicked . | . . . . . Crushed . | . . . . . Highest Temperature 175 | . 6 78 . 175 Average Temperature 49 | . 3 16 . 116 Received Heat Transfer 206 | . 87 99 . 20 Siege Activations . | . . . . . Robots Corrupted . | . . . . . Combat Hostiles . | . . . . . Parts Fried . | . . . . . Impact Corruptions . | . . . . . Robots Melted . | . . . . . Combat Hostiles . | . . . . . Parts Melted . | . . . . . Heat Transferred 333 | . . 148 . 185 Parts Sabotaged . | . . . . . Parts Stolen . | . . . . . Parts Stripped . | . . . . . Power Chain Reactions . | . . . . . Missiles Intercepted . | . . . . . Alert | -11 -10 -10 -10 -9 ------- Run | Jun Mat Min Exi Min Peak Influence 282 | 10 282 196 . 12 Initial 61 | . 6 61 . . Average 102 | 3 150 113 . . Maximum Alert Level 1 | . 1 . . . Low Security (%) 90 | 100 78 100 . 100 Level 1 9 | . 21 . . . Level 2 . | . . . . . Level 3 . | . . . . . Level 4 . | . . . . . Level 5 . | . . . . . High Security . | . . . . . Max Security . | . . . . . Squads Dispatched 1 | . 1 . . . Investigation 1 | . 1 . . . Extermination . | . . . . . Reinforcement . | . . . . . Assault . | . . . . . Garrison . | . . . . . Intercept . | . . . . . Searches Triggered . | . . . . . Construction Impeded . | . . . . . Haulers Reinforced . | . . . . . Active Scanning Responses . | . . . . . Cargo Convoy Interrupts . | . . . . . Stealth | -11 -10 -10 -10 -9 --------- Run | Jun Mat Min Exi Min Distress Signals 2 | . 2 . . . Communications Jammed . | . . . . . Distress Signals . | . . . . . Times Spotted 36 | . 18 8 . 10 Peak Tracking Total 9 | . 5 3 . 9 Tactical Retreats 3 | . 1 1 . 1 Traps | -11 -10 -10 -10 -9 ------- Run | Jun Mat Min Exi Min Traps Triggered 1 | . 1 . . . Indirectly . | . . . . . Trap Hack Attempts . | . . . . . Triggered . | . . . . . Disarmed . | . . . . . Reprogrammed . | . . . . . Reused . | . . . . . Traps Extracted . | . . . . . Installed . | . . . . . Triggered . | . . . . . Exploded 1 | . . . 1 . Machines | -11 -10 -10 -10 -9 ---------- Run | Jun Mat Min Exi Min Machines Disabled . | . . . . . Max in Single Turn . | . . . . . Machines Repaired . | . . . . . Machines Sabotaged . | . . . . . Overloaded Fab Kills . | . . . . . Hacking | -11 -10 -10 -10 -9 --------- Run | Jun Mat Min Exi Min Machines Accessed 7 | . 5 2 . . Terminals 5 | . 4 1 . . Fabricators . | . . . . . Repair Stations . | . . . . . Recycling Units 1 | . 1 . . . Scanalyzers . | . . . . . Garrison Access . | . . . . . Total Hacks 10 | . 7 3 . . Successful 5 | . 3 2 . . Failed 5 | . 4 1 . . Catastrophic . | . . . . . Database Lockouts . | . . . . . Manual 3 | . 2 . 1 . Terminals 8 | . 6 2 . . Fabricators . | . . . . . Repair Stations . | . . . . . Recycling Units 1 | . 1 . . . Scanalyzers . | . . . . . Garrison Access . | . . . . . Terminal Hacks 4 | . 2 2 . . Prototype ID Bank 1 | . 1 . . . Open Door 1 | . . 1 . . Hauler Manifests 1 | . 1 . . . Zone Layout 1 | . . 1 . . Fabricator Hacks . | . . . . . Repair Station Hacks . | . . . . . Recycling Unit Hacks 1 | . 1 . . . Report Inventory 1 | . 1 . . . Scanalyzer . | . . . . . Garrison Access Hacks . | . . . . . Unauthorized Hacks . | . . . . . Terminals . | . . . . . Fabricators . | . . . . . Repair Stations . | . . . . . Recycling Units . | . . . . . Scanalyzers . | . . . . . Garrison Access . | . . . . . Data Cores Recovered . | . . . . . Used . | . . . . . Hacking Detections 2 | . 2 . . . Full Trace Events 1 | . 1 . . . Feedback Events . | . . . . . Feedback Blocked . | . . . . . Robot Schematics Acquired . | . . . . . Robots Built . | . . . . . Authchips . | . . . . . Time . | . . . . . Total Robot Build Rating . | . . . . . Part Schematics Acquired . | . . . . . Parts Built . | . . . . . Authchips . | . . . . . Time . | . . . . . Total Part Build Rating . | . . . . . Parts Repaired . | . . . . . Time . | . . . . . Parts Recycled . | . . . . . Recycled Matter . | . . . . . Retrieved Matter . | . . . . . Retrieved Components . | . . . . . Parts Scanalyzed . | . . . . . Part Schematics Acquired . | . . . . . Parts Damaged . | . . . . . Bothacking | -11 -10 -10 -10 -9 ------------ Run | Jun Mat Min Exi Min Used RIF Installer . | . . . . . Robots Hacked . | . . . . . Non-combat . | . . . . . Combat . | . . . . . Robot Hacks Applied . | . . . . . Relay Couplers Released . | . . . . . Fabnet Peak Effective % . | . . . . . Robots Rewired . | . . . . . Allies Hacked . | . . . . . Hacks Repelled . | . . . . . Allies | -11 -10 -10 -10 -9 -------- Run | Jun Mat Min Exi Min Total Allies . | . . . . . Largest Group . | . . . . . Highest-Rated Group . | . . . . . Highest-Rated Ally . | . . . . . Total Orders . | . . . . . Ally Attacks . | . . . . . Total Damage . | . . . . . Kills . | . . . . . Allies Corrupted . | . . . . . Allies Melted . | . . . . . Intel | -11 -10 -10 -10 -9 ------- Run | Jun Mat Min Exi Min Robot Analysis Total . | . . . . . Derelict Logs Recovered 2 | . . 1 . 1 Drone Launches . | . . . . . Drone Recoveries . | . . . . . Exploration | -11 -10 -10 -10 -9 ------------- Run | Jun Mat Min Exi Min Turns Passed 2485 | 87 783 590 672 353 Spaces Moved 2292 | 68 622 593 698 311 Core 2 | 1 . 1 . . Treads . | . . . . . Legs . | . . . . . Wheels 2290 | 67 622 592 698 311 Hover . | . . . . . Flight . | . . . . . Fastest Speed 50 | 50 80 80 80 95 Average Speed 90 | 79 88 87 94 95 Slowest Speed 250 | 80 95 250 95 95 Overloaded Moves . | . . . . . Propulsion Burnouts . | . . . . . Robots Hopped . | . . . . . Cave-ins Triggered . | . . . . . Exploration Rate (%) 69 | 4 83 99 93 66 Regions Visited 4 Branch Regions 3 Pre-discovered Areas 1 | . . 1 . . Known Exits Taken . | . . . . . Unknown Exits Taken 4 | 1 1 1 1 . Scrap Searched 3 | . . 1 . 2 Spaces Dug . | . . . . . Terrain Destroyed 16 | . . . . 16 Melee . | . . . . . Projectile . | . . . . . AOE 16 | . . . . 16 Terrain Rammed . | . . . . . Walls Destroyed . | . . . . . Machines Disabled . | . . . . . Actions | -11 -10 -10 -10 -9 --------- Run | Jun Mat Min Exi Min Total 2553 | 87 763 637 708 358 Wait 121 | . 66 11 3 41 Move 2288 | 67 621 592 697 311 Hop . | . . . . . Pick Up 27 | 8 13 4 2 . Fast Attach 10 | 7 . 3 . . Attach 6 | . 2 3 1 . Detach . | . . . . . Swap 7 | . 3 1 2 1 Drop 16 | . 11 2 3 . Fire 78 | 5 47 21 . 5 Melee . | . . . . . Ram . | . . . . . Kick . | . . . . . Crush . | . . . . . Escape Stasis . | . . . . . Rewire . | . . . . . Trap . | . . . . . Miscellaneous . | . . . . . Route ------- -11/Junkyard -10/Materials (discovered 5 exits: [*Mat x3] / *Min x2) -10/Mines (discovered 3 exits: [*Mat x2] / *Exi) -10/Exiles (discovered 2 exits: [*Min x2]) -9/Mines (discovered 1 exit: [*Mat]) History --------- Turn | Location | Event 15 | -11/Junkyard | Discovered new exit (range 14) 88 | -11/Junkyard | Entered Materials 92 | -10/Materials | Discovered new exit (range 13) 326 | -10/Materials | Build established: Mutant 423 | -10/Materials | Discovered new exit (range 9) 513 | -10/Materials | Discovered new exit (range 16) 672 | -10/Materials | Discovered new exit (range 8) 821 | -10/Materials | Discovered new exit (range 13) 871 | -10/Materials | Entered Mines 872 | -10/Mines | Learned location of Storage (-8) 942 | -10/Mines | Met a Derelict who couldn't figure out how to use a Trap Extractor 976 | -10/Mines | Received a Rocket Launcher from a helpful Derelict 1010 | -10/Mines | Learned 2 Materials zone layouts 1014 | -10/Mines | Discovered new exit (range 6) 1115 | -10/Mines | Discovered new exit (range 13) 1342 | -10/Mines | Core integrity fell below 50% 1375 | -10/Mines | Lost 5 parts (1p2n2w) 1456 | -10/Mines | Deemed a non-threat by the Exiles lab entrance 1457 | -10/Mines | Discovered new exit (range 5) 1461 | -10/Mines | Entered Exiles 1477 | -10/Exiles | Discovered new exit (range 15) 1504 | -10/Exiles | Met 8R-AWN 1522 | -10/Exiles | Met EX-HEX 1567 | -10/Exiles | Met EX-DEC 1587 | -10/Exiles | Visited The Gauntlet 1793 | -10/Exiles | Discovered new exit (range 14) 1857 | -10/Exiles | Met EX-BIN 1960 | -10/Exiles | Aligned with FarCom system 1961 | -10/Exiles | Given EX-Vault access code 1985 | -10/Exiles | Opened EX-Vault 1991 | -10/Exiles | Found Prototype Special Weapon 1992 | -10/Exiles | Identified Field Lobotomy Kit 1998 | -10/Exiles | Found Prototype Device 2021 | -10/Exiles | Warned to stay clear of 0b10 Research branches 2029 | -10/Exiles | Exiles lab attacked by MAIN.C 2133 | -10/Exiles | Left Exiles lab with Trap Reconfigurator 2133 | -10/Exiles | Entered Mines 2143 | -9/Mines | Met a Derelict bent on vengeance 2157 | -9/Mines | Discovered new exit (range 16) 2319 | -9/Mines | Found a hidden stash of uninstalled traps 2440 | -9/Mines | Assembled infested the area 2476 | -9/Mines | Core integrity fell below 20% 2486 | -9/Mines | Destroyed by D-53 Grenadier with Mini Grenade Launcher Last Messages --------------- 02243_ Found Hvy. Hammer. 02243_ Found Med. Laser. 02243_ Found Heat Sink. 02243_ Found 17 Matter. 02319_ A stash of uninstalled traps is collected here! 02406_ Acquired derelict log, extracted data. Data stored: Lower Caves entrances (x1). 02440_ ALERT: Infestation in the mines, dispatching Demolisher response squad. 02473_ as-54172 destroyed. 02474_ Wheel destroyed. 02474_ System corrupted by crushing effect (+2). 02474_ Knocked back. 02476_ GM-J5T destroyed. 02477_ as-29835 destroyed. 02477_ as-53976 destroyed. 02477_ Destroyed Asb. F-torch. 02480_ as-34818 destroyed. 02480_ as-11554 destroyed. 02480_ as-29859 destroyed. Map ----- +----------------------------------------------------+ | ??# #?# ##??# #?????# %! | | ??# #?## ##### ####### [ / | | ?## ##?## ### ### | | ?# ######??# ########## ##?# | | ?# ##??# #????????# ####??# | | ?# #### #????????# #####??# | | ?## & #????????## ### ##?# | | ??## & & #####?????????##### ### | | ???## & ##????????????????## | | ????## #?????????????????# #### | | ?????## ##?????????????????# #??### | | ??????## ##??????????????????## ##???? | | ???????# #????????????????????## ##??? | | ???????## #?????????????????????# ##?? | | ????????###?????????????????????# #?? | | ???????????????????????????####### #?? | | ???????????????????????????# #### | | ???????????????????????????# ##### ## | | ???????????????????????????# #???# #???? | | ???????????????????????????# #???# ??? | | ???????????????????????????# #???# ###?? | | ???????????????????????????# #???# ####? | | ???????????######??????????# ###?# #? | | ??????????## ##????????## ## #? | | ?????????## #???????## #?? | | ????????## @##?????## #?? | | ???????## a a ###?## ##?? | | ?????### """ % ### ##??? | | ????## """ d ####???? | | ???## """ = d #####??????? | | ??## = ##??????????? | | ?## ###### ##???????????? | | ?# ##?##### # ##????????????? | | ?# #### ####?# ##?????????????? | | ?# ##?# #???? #??????????????? | | ?# #### #????## ##??????????????? | | ?## ## #?????## a##???????????????? | | ??# #??????# #????????????????? | | ??## ##??????# #????????????????? | | ???## ##???????# #????????????????? | | ????########????????# #????????????????? | | ????????????????????# #????????????????? | | ????????????????????# #????????????????? | | ???????????????????? #????????????????? | | ????????????????????? ?????????????????? | | ????????????????????????????????????????? | | ????????????????????????????????????????? | | ????????????????????????????????????????? | | ????????????????????????????????????????? | | ????????????????????????????????????????? | +----------------------------------------------------+ Best States ------------- Heat Dissipation 25 Energy Generation 12 Energy Capacity 265 Matter Stores 300 Matter Capacity 300 Sight Range 16 Terrain Scan Range 16 Terrain Scan Density 10 Evasion (%) 44 Targeting Accuracy 5 Item Schematics ----------------- None Robot Schematics ------------------ None Fabricated ------------ Nothing Alien Tech Used ----------------- None Achievements -------------- None Challenges ------------ None Game ------ Seed DisruptionGyrokineticDevice Manual? 0 Play Time 00:58:07 Cumulative 10.3 hours Start 2023.04.18 @ 12:36:18 End 2023.04.18 @ 13:47:12 Sessions 1 Manual Loads 0 Difficulty Rogue Special Mode None Game No. 8 Rogue 8 Adventurer 0 Explorer 0 Win Type - Total 0 Types 0/0/0/0/0/0/0/0/0 Lore% 18 Gallery% 15 Achievement% 17 Wizard Run 0 Options --------- ASCII 0 Keyboard 1 Movement Numpad Keybinds 0 Fullscreen 1 Font 24/Proggy Map View 76x50 Tactical HUD 1 Map Filters NONE Filters NONE Steam 1 RUN: 7babdd4d-b7cb-45b6-b63a-209ed6c36418